[Event "*** SCC Grand Prix: Titled Tuesday Blitz"]
[Site "Chess.com"]
[Date "2020.06.23"]
[Round "2"]
[White "A-Fier"]
[Black "Bazarov04"]
[Result "1/2-1/2"]
[WhiteElo "2746"]
[BlackElo "2511"]
[TimeControl "180+1"]
[EndTime "10:20:52 PDT"]
[Termination "Game drawn by repetition"]

1. d4 {[%clk 0:03:00.9]} 1... e6 {[%clk 0:02:56.1]} 2. c4 {[%clk 0:03:00.8]}
2... f5 {[%clk 0:02:55.9]} 3. Nc3 {[%clk 0:03:00.1]} 3... Nf6 {[%clk 0:02:55.7]}
4. e3 {[%clk 0:03:00.8]} 4... Bb4 {[%clk 0:02:56]} 5. Qc2 {[%clk 0:03:00.3]}
5... O-O {[%clk 0:02:53.4]} 6. Bd3 {[%clk 0:03:00.8]} 6... Nc6 {[%clk
0:02:52.5]} 7. Ne2 {[%clk 0:03:01.3]} 7... d6 {[%clk 0:02:52.5]} 8. Bd2 {[%clk
0:02:58]} 8... a5 {[%clk 0:02:50.1]} 9. a3 {[%clk 0:02:57.8]} 9... Bxc3 {[%clk
0:02:50.1]} 10. Bxc3 {[%clk 0:02:58.7]} 10... a4 {[%clk 0:02:49.8]} 11. f3
{[%clk 0:02:56.5]} 11... Bd7 {[%clk 0:02:42.5]} 12. O-O {[%clk 0:02:55.6]} 12...
Na5 {[%clk 0:02:36.6]} 13. Rae1 {[%clk 0:02:53.4]} 13... Nb3 {[%clk 0:02:35.3]}
14. Nf4 {[%clk 0:02:48.8]} 14... Qe7 {[%clk 0:02:29.2]} 15. Ne2 {[%clk
0:02:32.5]} 15... c5 {[%clk 0:02:22.3]} 16. Ng3 {[%clk 0:02:31.5]} 16... Rac8
{[%clk 0:02:15.3]} 17. d5 {[%clk 0:02:28.6]} 17... g6 {[%clk 0:01:59.2]} 18.
dxe6 {[%clk 0:02:21.2]} 18... Bxe6 {[%clk 0:02:00.1]} 19. e4 {[%clk 0:02:21.6]}
19... f4 {[%clk 0:02:00.2]} 20. e5 {[%clk 0:02:07.7]} 20... dxe5 {[%clk
0:01:58.2]} 21. Ne4 {[%clk 0:02:07.4]} 21... Nd4 {[%clk 0:01:55.9]} 22. Qxa4
{[%clk 0:02:04.4]} 22... Nxe4 {[%clk 0:01:51.9]} 23. Bxe4 {[%clk 0:01:44.4]}
23... Rfd8 {[%clk 0:01:41.4]} 24. Bd5 {[%clk 0:01:27.7]} 24... Bxd5 {[%clk
0:01:36.4]} 25. cxd5 {[%clk 0:01:28.6]} 25... b5 {[%clk 0:01:30.6]} 26. Qd1
{[%clk 0:01:22.2]} 26... Rxd5 {[%clk 0:01:30.3]} 27. Re4 {[%clk 0:01:22.9]}
27... Qd6 {[%clk 0:01:28.5]} 28. Rfe1 {[%clk 0:01:20]} 28... Rd8 {[%clk
0:01:23.7]} 29. Qb1 {[%clk 0:01:17.6]} 29... Nc6 {[%clk 0:00:57.3]} 30. h3
{[%clk 0:01:14.4]} 30... Rd1 {[%clk 0:00:53.1]} 31. Qa2+ {[%clk 0:01:12.5]}
31... c4 {[%clk 0:00:52.9]} 32. Kh2 {[%clk 0:01:03.7]} 32... Rxe1 {[%clk
0:00:44.8]} 33. Rxe1 {[%clk 0:01:04.6]} 33... Qc5 {[%clk 0:00:36.6]} 34. Qb1
{[%clk 0:01:04]} 34... Rd3 {[%clk 0:00:36.5]} 35. Qc2 {[%clk 0:01:01.5]} 35...
Qd5 {[%clk 0:00:36.4]} 36. Qe2 {[%clk 0:01:00.5]} 36... Re3 {[%clk 0:00:34.8]}
37. Qf2 {[%clk 0:00:59.9]} 37... Rxe1 {[%clk 0:00:34.2]} 38. Qxe1 {[%clk
0:01:00.8]} 38... Kf7 {[%clk 0:00:34]} 39. Qh4 {[%clk 0:01:00.7]} 39... h5
{[%clk 0:00:32.9]} 40. Qg5 {[%clk 0:01:00.9]} 40... Nd4 {[%clk 0:00:30.1]} 41.
Qh6 {[%clk 0:00:59.8]} 41... Nf5 {[%clk 0:00:29.8]} 42. Qh7+ {[%clk 0:00:59.2]}
42... Kf6 {[%clk 0:00:25.6]} 43. Qh8+ {[%clk 0:00:59.1]} 43... Kf7 {[%clk
0:00:25.7]} 44. Bxe5 {[%clk 0:00:56.4]} 44... Qe6 {[%clk 0:00:21.1]} 45. Bxf4
{[%clk 0:00:55.9]} 45... Ne7 {[%clk 0:00:18.3]} 46. Qh7+ {[%clk 0:00:55.7]}
46... Ke8 {[%clk 0:00:18.2]} 47. Qh8+ {[%clk 0:00:55.6]} 47... Kd7 {[%clk
0:00:18.3]} 48. Qd4+ {[%clk 0:00:55.4]} 48... Nd5 {[%clk 0:00:18.4]} 49. Be5
{[%clk 0:00:55.7]} 49... Kc6 {[%clk 0:00:17.5]} 50. f4 {[%clk 0:00:55.7]} 50...
h4 {[%clk 0:00:16.7]} 51. a4 {[%clk 0:00:56.1]} 51... g5 {[%clk 0:00:09.3]} 52.
Qa7 {[%clk 0:00:52.2]} 52... Nxf4 {[%clk 0:00:08.1]} 53. Qa8+ {[%clk 0:00:34.8]}
53... Kd7 {[%clk 0:00:07.8]} 54. Qb7+ {[%clk 0:00:33.8]} 54... Kd8 {[%clk
0:00:05]} 55. Qxb5 {[%clk 0:00:34.3]} 55... Qd5 {[%clk 0:00:02.1]} 56. Qb8+
{[%clk 0:00:29.8]} 56... Ke7 {[%clk 0:00:02.3]} 57. Bxf4 {[%clk 0:00:30.7]}
57... gxf4 {[%clk 0:00:02.3]} 58. Qxf4 {[%clk 0:00:31.6]} 58... Ke6 {[%clk
0:00:01.6]} 59. Qxh4 {[%clk 0:00:31.4]} 59... Kd6 {[%clk 0:00:02.1]} 60. Qf4+
{[%clk 0:00:31.1]} 60... Kc6 {[%clk 0:00:02.5]} 61. Qf6+ {[%clk 0:00:31.2]}
61... Kc5 {[%clk 0:00:02.6]} 62. h4 {[%clk 0:00:31.6]} 62... Kb4 {[%clk
0:00:02.8]} 63. Qc3+ {[%clk 0:00:29.5]} 63... Kxa4 {[%clk 0:00:02.9]} 64. Qg3
{[%clk 0:00:26.7]} 64... Qf7 {[%clk 0:00:03.2]} 65. Qg4 {[%clk 0:00:25.5]} 65...
Kb3 {[%clk 0:00:03.5]} 66. h5 {[%clk 0:00:25.1]} 66... Kxb2 {[%clk 0:00:03.3]}
67. h6 {[%clk 0:00:26]} 67... c3 {[%clk 0:00:03.5]} 68. Qg7 {[%clk 0:00:26]}
68... Qf4+ {[%clk 0:00:03.5]} 69. Kh3 {[%clk 0:00:26.2]} 69... Qe3+ {[%clk
0:00:03.5]} 70. g3 {[%clk 0:00:26.3]} 70... Qe6+ {[%clk 0:00:04]} 71. Kh4 {[%clk
0:00:26.6]} 71... Qe4+ {[%clk 0:00:03.9]} 72. g4 {[%clk 0:00:27]} 72... Qh1+
{[%clk 0:00:04.1]} 73. Kg5 {[%clk 0:00:27.4]} 73... Kb3 {[%clk 0:00:03.8]} 74.
h7 {[%clk 0:00:27.4]} 74... c2 {[%clk 0:00:04.1]} 75. h8=Q {[%clk 0:00:26.8]}
75... Qxh8 {[%clk 0:00:05]} 76. Qxh8 {[%clk 0:00:27.7]} 76... c1=Q+ {[%clk
0:00:05.5]} 77. Kg6 {[%clk 0:00:26.7]} 77... Qc2+ {[%clk 0:00:05.2]} 78. Kf7
{[%clk 0:00:23.4]} 78... Qc7+ {[%clk 0:00:05.3]} 79. Kg6 {[%clk 0:00:22.9]}
79... Qc2+ {[%clk 0:00:05.1]} 80. Kg5 {[%clk 0:00:23.4]} 80... Qd2+ {[%clk
0:00:04.8]} 81. Kf5 {[%clk 0:00:23.5]} 81... Qc2+ {[%clk 0:00:04.5]} 82. Ke6
{[%clk 0:00:23.2]} 82... Qc4+ {[%clk 0:00:04.4]} 83. Kd7 {[%clk 0:00:21.8]}
83... Qxg4+ {[%clk 0:00:04.3]} 84. Kc7 {[%clk 0:00:22.1]} 84... Qc4+ {[%clk
0:00:04.3]} 85. Kb7 {[%clk 0:00:22.3]} 85... Qb4+ {[%clk 0:00:04.6]} 86. Ka7
{[%clk 0:00:22.7]} 86... Qa4+ {[%clk 0:00:04.8]} 87. Kb8 {[%clk 0:00:23.2]}
87... Qb4+ {[%clk 0:00:05.7]} 88. Ka8 {[%clk 0:00:23.6]} 88... Qa4+ {[%clk
0:00:05.9]} 89. Kb8 {[%clk 0:00:24]} 89... Qb4+ {[%clk 0:00:06.8]} 90. Ka8
{[%clk 0:00:22.7]} 90... Qa4+ {[%clk 0:00:07.2]} 91. Kb8 {[%clk 0:00:23.3]}
1/2-1/2

[Event "*** SCC Grand Prix: Titled Tuesday Blitz"]
[Site "Chess.com"]
[Date "2020.06.23"]
[Round "2"]
[White "szachuspl"]
[Black "vladislavkovalev"]
[Result "1-0"]
[WhiteElo "2588"]
[BlackElo "2899"]
[TimeControl "180+1"]
[EndTime "10:21:18 PDT"]
[Termination "szachuspl won by resignation"]

1. d4 {[%clk 0:03:00.9]} 1... Nf6 {[%clk 0:03:00.4]} 2. c4 {[%clk 0:03:00.2]}
2... e6 {[%clk 0:03:00.5]} 3. Nf3 {[%clk 0:03:00.1]} 3... d5 {[%clk 0:03:00.6]}
4. Nc3 {[%clk 0:02:59.9]} 4... Be7 {[%clk 0:03:01.2]} 5. Bf4 {[%clk 0:02:59.5]}
5... O-O {[%clk 0:03:01.5]} 6. e3 {[%clk 0:02:59.8]} 6... b6 {[%clk 0:03:02.1]}
7. Bd3 {[%clk 0:02:58.8]} 7... Bb7 {[%clk 0:03:01.3]} 8. cxd5 {[%clk 0:02:56.8]}
8... exd5 {[%clk 0:02:58.5]} 9. Ne5 {[%clk 0:02:56.5]} 9... Nbd7 {[%clk
0:02:55.7]} 10. Qf3 {[%clk 0:02:49.6]} 10... Bd6 {[%clk 0:02:42.2]} 11. O-O
{[%clk 0:02:42.2]} 11... Re8 {[%clk 0:02:38.3]} 12. Nxd7 {[%clk 0:02:15.3]}
12... Qxd7 {[%clk 0:02:39.2]} 13. Bxd6 {[%clk 0:02:12.6]} 13... Qxd6 {[%clk
0:02:40.1]} 14. Rac1 {[%clk 0:02:06.5]} 14... a6 {[%clk 0:02:37.5]} 15. a3
{[%clk 0:02:03.8]} 15... Re7 {[%clk 0:02:37.3]} 16. Qh3 {[%clk 0:02:02.8]} 16...
g6 {[%clk 0:02:31.4]} 17. Qh4 {[%clk 0:01:59.4]} 17... Kg7 {[%clk 0:02:28.3]}
18. Rfd1 {[%clk 0:01:56.8]} 18... Rae8 {[%clk 0:02:22.6]} 19. Ne2 {[%clk
0:01:54.8]} 19... Ne4 {[%clk 0:01:49.2]} 20. Bxe4 {[%clk 0:01:51.8]} 20... Rxe4
{[%clk 0:01:50.1]} 21. Qg3 {[%clk 0:01:51.7]} 21... Qxg3 {[%clk 0:01:47.1]} 22.
Nxg3 {[%clk 0:01:47.2]} 22... R4e7 {[%clk 0:01:47.3]} 23. Rc3 {[%clk 0:01:47]}
23... Rd8 {[%clk 0:01:42.6]} 24. Rdc1 {[%clk 0:01:46.7]} 24... Rdd7 {[%clk
0:01:43.2]} 25. Ne2 {[%clk 0:01:46.5]} 25... f6 {[%clk 0:01:42.1]} 26. Nf4
{[%clk 0:01:46.1]} 26... Kf7 {[%clk 0:01:41.7]} 27. Nd3 {[%clk 0:01:42.4]} 27...
a5 {[%clk 0:01:41.9]} 28. g3 {[%clk 0:01:32.9]} 28... Ba6 {[%clk 0:01:41]} 29.
Nf4 {[%clk 0:01:28.8]} 29... a4 {[%clk 0:01:37.7]} 30. h4 {[%clk 0:01:27.8]}
30... Bc4 {[%clk 0:01:37.2]} 31. Nd3 {[%clk 0:01:25.9]} 31... Re8 {[%clk
0:01:18.7]} 32. Ne1 {[%clk 0:01:19.3]} 32... Ke6 {[%clk 0:01:12.4]} 33. Nf3
{[%clk 0:01:17]} 33... Kd6 {[%clk 0:01:12.9]} 34. Nd2 {[%clk 0:01:16.9]} 34...
b5 {[%clk 0:01:13.4]} 35. R3c2 {[%clk 0:01:10.5]} 35... Rde7 {[%clk 0:01:05.5]}
36. Nf3 {[%clk 0:01:08.1]} 36... Re6 {[%clk 0:00:59.7]} 37. Ne1 {[%clk
0:01:07.6]} 37... h6 {[%clk 0:00:48.4]} 38. Rc3 {[%clk 0:01:06.8]} 38... g5
{[%clk 0:00:46.8]} 39. hxg5 {[%clk 0:01:05.6]} 39... hxg5 {[%clk 0:00:47.1]} 40.
Nd3 {[%clk 0:01:05.7]} 40... Rh8 {[%clk 0:00:47.1]} 41. Kg2 {[%clk 0:01:02.3]}
41... Re7 {[%clk 0:00:45.8]} 42. Rh1 {[%clk 0:01:00.4]} 42... Rxh1 {[%clk
0:00:46.1]} 43. Kxh1 {[%clk 0:01:00.6]} 43... Rh7+ {[%clk 0:00:40.5]} 44. Kg2
{[%clk 0:01:00.3]} 44... g4 {[%clk 0:00:29.2]} 45. Nf4 {[%clk 0:00:51.9]} 45...
Rh8 {[%clk 0:00:19]} 46. Rc1 {[%clk 0:00:50.8]} 46... b4 {[%clk 0:00:19.3]} 47.
axb4 {[%clk 0:00:45.9]} 47... Rb8 {[%clk 0:00:18.9]} 48. Rc2 {[%clk 0:00:46]}
48... Rxb4 {[%clk 0:00:19.3]} 49. Rd2 {[%clk 0:00:46.1]} 49... Rb8 {[%clk
0:00:17.9]} 50. Nh5 {[%clk 0:00:46.2]} 50... Ke6 {[%clk 0:00:16.9]} 51. Nf4+
{[%clk 0:00:46.3]} 51... Kf5 {[%clk 0:00:17.4]} 52. Nh5 {[%clk 0:00:44.6]} 52...
Rh8 {[%clk 0:00:14.5]} 53. Nf4 {[%clk 0:00:44.7]} 53... Ke4 {[%clk 0:00:13]} 54.
Rc2 {[%clk 0:00:44.1]} 54... Rb8 {[%clk 0:00:09.7]} 55. Rd2 {[%clk 0:00:44]}
55... Rb6 {[%clk 0:00:10.1]} 56. Rc2 {[%clk 0:00:43.4]} 56... Rb7 {[%clk
0:00:05]} 57. Rd2 {[%clk 0:00:43.7]} 57... Rb8 {[%clk 0:00:05.5]} 58. Rc2 {[%clk
0:00:43.9]} 58... Rb6 {[%clk 0:00:06.2]} 59. Rd2 {[%clk 0:00:44.3]} 59... Kf5
{[%clk 0:00:06.8]} 60. Rc2 {[%clk 0:00:44]} 60... Rb8 {[%clk 0:00:06.2]} 61. Rd2
{[%clk 0:00:43.9]} 61... Rh8 {[%clk 0:00:06.8]} 62. Rc2 {[%clk 0:00:43.8]} 62...
c6 {[%clk 0:00:06.2]} 63. Rd2 {[%clk 0:00:43.4]} 63... Bb3 {[%clk 0:00:06.6]}
64. Re2 {[%clk 0:00:41.9]} 64... Bd1 {[%clk 0:00:06.2]} 65. Kg1 {[%clk
0:00:28.2]} 65... Bxe2 {[%clk 0:00:03.9]} 66. Nxe2 {[%clk 0:00:29.1]} 66... Ke4
{[%clk 0:00:04.1]} 67. Nc3+ {[%clk 0:00:28.8]} 67... Kf3 {[%clk 0:00:03.4]} 68.
Nxa4 {[%clk 0:00:28.8]} 68... Ra8 {[%clk 0:00:03.7]} 69. b3 {[%clk 0:00:27.7]}
69... Ke2 {[%clk 0:00:02.3]} 70. Kg2 {[%clk 0:00:28]} 70... Rb8 {[%clk
0:00:02.2]} 71. Nc5 {[%clk 0:00:28]} 71... Ra8 {[%clk 0:00:02.9]} 72. Nd7 {[%clk
0:00:28.2]} 72... Ra1 {[%clk 0:00:02.6]} 73. Nxf6 {[%clk 0:00:27.6]} 73... Rb1
{[%clk 0:00:02.5]} 74. Nxg4 {[%clk 0:00:27.8]} 74... Rxb3 {[%clk 0:00:03.4]} 75.
Ne5 {[%clk 0:00:28]} 75... Rb1 {[%clk 0:00:04]} 76. Ng6 {[%clk 0:00:27.9]} 76...
Rf1 {[%clk 0:00:03.9]} 77. Nf4+ {[%clk 0:00:28.3]} 77... Ke1 {[%clk 0:00:04.8]}
78. Nh3 {[%clk 0:00:28.5]} 78... Ke2 {[%clk 0:00:04.6]} 79. g4 {[%clk 0:00:29]}
79... Rb1 {[%clk 0:00:04.5]} 80. g5 {[%clk 0:00:29.4]} 80... Rb8 {[%clk
0:00:04.4]} 81. Kg3 {[%clk 0:00:29.9]} 81... Rg8 {[%clk 0:00:04.6]} 82. Kg4
{[%clk 0:00:26.5]} 82... Kd3 {[%clk 0:00:04.4]} 83. Nf4+ {[%clk 0:00:25]} 83...
Ke4 {[%clk 0:00:05.3]} 84. g6 {[%clk 0:00:24.9]} 84... Rf8 {[%clk 0:00:03.4]}
85. Kg5 {[%clk 0:00:24.6]} 85... Rf5+ {[%clk 0:00:02.4]} 86. Kg4 {[%clk
0:00:24.4]} 86... Rf8 {[%clk 0:00:03.3]} 87. g7 {[%clk 0:00:24.2]} 87... Rg8
{[%clk 0:00:03.5]} 88. Nh5 {[%clk 0:00:24.5]} 88... Kd3 {[%clk 0:00:03.4]} 89.
Kf4 {[%clk 0:00:21.4]} 89... Ke2 {[%clk 0:00:03.6]} 90. f3 {[%clk 0:00:21.7]}
90... Kd3 {[%clk 0:00:02.6]} 91. e4 {[%clk 0:00:18.9]} 91... dxe4 {[%clk
0:00:02.4]} 92. fxe4 {[%clk 0:00:19.5]} 92... Kxd4 {[%clk 0:00:03.1]} 93. Kf5
{[%clk 0:00:20.1]} 93... c5 {[%clk 0:00:03.4]} 94. e5 {[%clk 0:00:19.9]} 94...
c4 {[%clk 0:00:03.9]} 95. Nf4 {[%clk 0:00:19.5]} 95... c3 {[%clk 0:00:03.5]} 96.
Ne2+ {[%clk 0:00:19.2]} 96... Kc4 {[%clk 0:00:03.8]} 97. Kf6 {[%clk 0:00:18.4]}
97... Rc8 {[%clk 0:00:02.2]} 98. Nxc3 {[%clk 0:00:17.2]} 98... Kxc3 {[%clk
0:00:02.5]} 99. Kf7 {[%clk 0:00:17.7]} 99... Rc7+ {[%clk 0:00:02.8]} 100. Kf6
{[%clk 0:00:17.6]} 100... Rc8 {[%clk 0:00:03.7]} 101. e6 {[%clk 0:00:18.2]}
101... Kd4 {[%clk 0:00:04.3]} 102. Kf7 {[%clk 0:00:18.7]} 102... Ke5 {[%clk
0:00:04.1]} 103. e7 {[%clk 0:00:19]} 103... Rc6 {[%clk 0:00:02.8]} 104. e8=Q+
{[%clk 0:00:18.5]} 1-0

[Event "*** SCC Grand Prix: Titled Tuesday Blitz"]
[Site "Chess.com"]
[Date "2020.06.23"]
[Round "3"]
[White "MYMChessAcademy"]
[Black "zurzan"]
[Result "0-1"]
[WhiteElo "2243"]
[BlackElo "1938"]
[TimeControl "180+1"]
[EndTime "10:22:14 PDT"]
[Termination "zurzan won by resignation"]

1. e4 {[%clk 0:03:00.9]} 1... Nf6 {[%clk 0:02:59.1]} 2. e5 {[%clk 0:03:00.4]}
2... Nd5 {[%clk 0:02:59.2]} 3. d4 {[%clk 0:03:00.8]} 3... d6 {[%clk 0:02:58.9]}
4. Nf3 {[%clk 0:03:00.8]} 4... g6 {[%clk 0:02:57.4]} 5. exd6 {[%clk 0:03:00.7]}
5... cxd6 {[%clk 0:02:57.3]} 6. c4 {[%clk 0:03:01.6]} 6... Nb6 {[%clk
0:02:56.6]} 7. Nc3 {[%clk 0:03:01.5]} 7... Bg7 {[%clk 0:02:56.7]} 8. Be3 {[%clk
0:03:01.5]} 8... O-O {[%clk 0:02:56.5]} 9. Be2 {[%clk 0:03:00.9]} 9... Nc6
{[%clk 0:02:56.4]} 10. d5 {[%clk 0:03:01.2]} 10... Ne5 {[%clk 0:02:54.8]} 11.
Nxe5 {[%clk 0:03:01.1]} 11... dxe5 {[%clk 0:02:55.7]} 12. Bd4 {[%clk 0:03:01.6]}
12... exd4 {[%clk 0:02:55]} 0-1

[Event "*** SCC Grand Prix: Titled Tuesday Blitz"]
[Site "Chess.com"]
[Date "2020.06.23"]
[Round "3"]
[White "GigaQuparadze"]
[Black "szachuspl"]
[Result "1-0"]
[WhiteElo "2819"]
[BlackElo "2585"]
[TimeControl "180+1"]
[EndTime "10:23:37 PDT"]
[Termination "GigaQuparadze won by resignation"]

1. e4 {[%clk 0:03:00.9]} 1... c5 {[%clk 0:02:59.3]} 2. Nf3 {[%clk 0:03:00.4]}
2... e6 {[%clk 0:02:59.1]} 3. d4 {[%clk 0:03:00.1]} 3... cxd4 {[%clk 0:02:58.9]}
4. Nxd4 {[%clk 0:03:01]} 4... Nc6 {[%clk 0:02:57.3]} 5. Nc3 {[%clk 0:03:01.2]}
5... a6 {[%clk 0:02:56.9]} 6. Nxc6 {[%clk 0:03:00.6]} 6... bxc6 {[%clk
0:02:56.7]} 7. e5 {[%clk 0:03:00.9]} 7... d5 {[%clk 0:02:44.5]} 8. exd6 {[%clk
0:02:55.8]} 8... Bxd6 {[%clk 0:02:43.8]} 9. Ne4 {[%clk 0:02:52.6]} 9... Be7
{[%clk 0:02:40.7]} 10. Qxd8+ {[%clk 0:02:51.8]} 10... Kxd8 {[%clk 0:02:40.8]}
11. Bf4 {[%clk 0:02:50.4]} 11... Nf6 {[%clk 0:02:37.4]} 12. O-O-O+ {[%clk
0:02:49.2]} 12... Bd7 {[%clk 0:02:37.4]} 13. Nxf6 {[%clk 0:02:31.8]} 13... gxf6
{[%clk 0:02:26.8]} 14. Be2 {[%clk 0:02:31.8]} 14... e5 {[%clk 0:02:26.7]} 15.
Bg4 {[%clk 0:02:30.1]} 15... exf4 {[%clk 0:02:19.9]} 16. Rxd7+ {[%clk
0:02:28.6]} 1-0

[Event "*** SCC Grand Prix: Titled Tuesday Blitz"]
[Site "Chess.com"]
[Date "2020.06.23"]
[Round "3"]
[White "Karacsonyi_Gellert"]
[Black "KoustavChatterjee1"]
[Result "1-0"]
[WhiteElo "2497"]
[BlackElo "2744"]
[TimeControl "180+1"]
[EndTime "10:23:44 PDT"]
[Termination "Karacsonyi_Gellert won by resignation"]

1. e4 {[%clk 0:03:00.9]} 1... e5 {[%clk 0:02:59.8]} 2. Nf3 {[%clk 0:02:59.7]}
2... Nc6 {[%clk 0:03:00]} 3. Bb5 {[%clk 0:03:00.3]} 3... Nf6 {[%clk 0:02:59.9]}
4. O-O {[%clk 0:02:59.9]} 4... Nxe4 {[%clk 0:03:00.1]} 5. d4 {[%clk 0:02:59.9]}
5... Nd6 {[%clk 0:02:59.8]} 6. dxe5 {[%clk 0:03:00.4]} 6... Nxb5 {[%clk
0:02:59.6]} 7. a4 {[%clk 0:03:00.9]} 7... Nbd4 {[%clk 0:02:55.8]} 8. Nxd4 {[%clk
0:03:01.3]} 8... d5 {[%clk 0:02:47.4]} 9. exd6 {[%clk 0:03:00.6]} 9... Bxd6
{[%clk 0:02:23.3]} 10. Re1+ {[%clk 0:02:56.5]} 10... Ne7 {[%clk 0:02:19.1]} 11.
Nc3 {[%clk 0:02:48.2]} 11... O-O {[%clk 0:02:17.6]} 12. Bg5 {[%clk 0:02:41.6]}
12... f6 {[%clk 0:02:17.4]} 13. Bh4 {[%clk 0:02:36.9]} 13... Nf5 {[%clk
0:02:15.3]} 14. Nxf5 {[%clk 0:02:33.9]} 14... Bxf5 {[%clk 0:02:16.2]} 15. Qd5+
{[%clk 0:02:33.4]} 1-0

[Event "*** SCC Grand Prix: Titled Tuesday Blitz"]
[Site "Chess.com"]
[Date "2020.06.23"]
[Round "3"]
[White "ArnieChipmunk"]
[Black "Ovsiannikov_Maxim"]
[Result "1-0"]
[WhiteElo "2342"]
[BlackElo "2114"]
[TimeControl "180+1"]
[EndTime "10:24:18 PDT"]
[Termination "ArnieChipmunk won by resignation"]

1. e4 {[%clk 0:03:00.8]} 1... Nc6 {[%clk 0:02:59]} 2. Nf3 {[%clk 0:03:00.7]}
2... e6 {[%clk 0:02:57.7]} 3. d4 {[%clk 0:02:59.9]} 3... d5 {[%clk 0:02:57.5]}
4. e5 {[%clk 0:02:55.8]} 4... f6 {[%clk 0:02:57.1]} 5. Bb5 {[%clk 0:02:53.1]}
5... Bd7 {[%clk 0:02:53.2]} 6. Bxc6 {[%clk 0:02:48.2]} 6... Bxc6 {[%clk
0:02:52.2]} 7. O-O {[%clk 0:02:45.4]} 7... Be7 {[%clk 0:02:50.1]} 8. b3 {[%clk
0:02:39.3]} 8... Qd7 {[%clk 0:02:49.7]} 9. Ba3 {[%clk 0:02:38.6]} 9... O-O-O
{[%clk 0:02:48.6]} 10. Bxe7 {[%clk 0:02:25]} 10... Nxe7 {[%clk 0:02:48]} 11. Re1
{[%clk 0:02:19.6]} 11... h6 {[%clk 0:02:45.8]} 12. Qe2 {[%clk 0:02:18.5]} 12...
f5 {[%clk 0:02:45.7]} 13. c4 {[%clk 0:02:11.1]} 13... dxc4 {[%clk 0:02:45.4]}
14. bxc4 {[%clk 0:02:10.7]} 14... Bxf3 {[%clk 0:02:45.2]} 15. Qxf3 {[%clk
0:02:08.8]} 15... Qxd4 {[%clk 0:02:44.7]} 16. Nc3 {[%clk 0:02:08.9]} 16... g5
{[%clk 0:02:41.6]} 17. Rab1 {[%clk 0:02:08.9]} 17... Nc6 {[%clk 0:02:40.4]} 18.
Nb5 {[%clk 0:02:04.8]} 18... Qd3 {[%clk 0:02:34]} 19. Nxa7+ {[%clk 0:02:00.4]}
19... Nxa7 {[%clk 0:02:29.1]} 20. Qxb7+ {[%clk 0:02:00.4]} 20... Kd7 {[%clk
0:02:28.9]} 21. Rbd1 {[%clk 0:02:00.2]} 21... Qxd1 {[%clk 0:02:24]} 22. Rxd1+
{[%clk 0:02:00.2]} 22... Ke7 {[%clk 0:02:24.6]} 23. Qxc7+ {[%clk 0:01:57.3]} 1-0

[Event "*** SCC Grand Prix: Titled Tuesday Blitz"]
[Site "Chess.com"]
[Date "2020.06.23"]
[Round "3"]
[White "Leonid_Starozhilov"]
[Black "JoliyRoger"]
[Result "1-0"]
[WhiteElo "2727"]
[BlackElo "2234"]
[TimeControl "180+1"]
[EndTime "10:24:37 PDT"]
[Termination "Leonid_Starozhilov won by resignation"]

1. e4 {[%clk 0:02:57.8]} 1... c6 {[%clk 0:02:59.8]} 2. d3 {[%clk 0:02:57.6]}
2... d5 {[%clk 0:03:00.7]} 3. Nd2 {[%clk 0:02:58.5]} 3... e5 {[%clk 0:03:00.3]}
4. Ngf3 {[%clk 0:02:58.7]} 4... Bd6 {[%clk 0:03:00.6]} 5. d4 {[%clk 0:02:59]}
5... exd4 {[%clk 0:03:00.5]} 6. exd5 {[%clk 0:02:59.1]} 6... cxd5 {[%clk
0:03:00.6]} 7. Bb5+ {[%clk 0:02:58.9]} 7... Nc6 {[%clk 0:02:59]} 8. O-O {[%clk
0:02:51.4]} 8... Ne7 {[%clk 0:02:59.3]} 9. Nb3 {[%clk 0:02:47.9]} 9... O-O
{[%clk 0:02:58.4]} 10. Nbxd4 {[%clk 0:02:44.5]} 10... Bg4 {[%clk 0:02:56.6]} 11.
Be2 {[%clk 0:02:42.3]} 11... Nxd4 {[%clk 0:02:47]} 12. Nxd4 {[%clk 0:02:37.5]}
12... Bxe2 {[%clk 0:02:46.2]} 13. Qxe2 {[%clk 0:02:32.9]} 13... Nc6 {[%clk
0:02:42.5]} 14. Nf5 {[%clk 0:02:19.6]} 14... Be5 {[%clk 0:02:33]} 15. c3 {[%clk
0:02:09.7]} 15... d4 {[%clk 0:02:20.8]} 16. cxd4 {[%clk 0:01:31.6]} 16... Nxd4
{[%clk 0:02:20.6]} 17. Qxe5 {[%clk 0:01:27.4]} 1-0

[Event "*** SCC Grand Prix: Titled Tuesday Blitz"]
[Site "Chess.com"]
[Date "2020.06.23"]
[Round "3"]
[White "ALEXJR20"]
[Black "Stormeman100100"]
[Result "1/2-1/2"]
[WhiteElo "2213"]
[BlackElo "2479"]
[TimeControl "180+1"]
[EndTime "10:24:41 PDT"]
[Termination "Game drawn by agreement"]

1. d4 {[%clk 0:03:00.9]} 1... Nf6 {[%clk 0:02:58.8]} 2. Nf3 {[%clk 0:03:01.1]}
2... g6 {[%clk 0:02:58.9]} 3. Nc3 {[%clk 0:02:57.8]} 3... Bg7 {[%clk 0:02:59.3]}
4. Bf4 {[%clk 0:02:57.7]} 4... d5 {[%clk 0:02:58.6]} 5. e3 {[%clk 0:02:57.6]}
5... O-O {[%clk 0:02:57.9]} 6. Be2 {[%clk 0:02:57.2]} 6... c6 {[%clk 0:02:57]}
7. h3 {[%clk 0:02:56.7]} 7... Bf5 {[%clk 0:02:54.4]} 8. O-O {[%clk 0:02:56.1]}
8... Ne4 {[%clk 0:02:54.2]} 9. Nh4 {[%clk 0:02:52.7]} 9... Nxc3 {[%clk
0:02:52.2]} 10. bxc3 {[%clk 0:02:52.6]} 10... Be6 {[%clk 0:02:52.4]} 11. Bh2
{[%clk 0:02:51.1]} 11... b5 {[%clk 0:02:51.9]} 12. a4 {[%clk 0:02:50.3]} 12...
bxa4 {[%clk 0:02:51.8]} 13. Rxa4 {[%clk 0:02:49.6]} 13... Nd7 {[%clk 0:02:51.5]}
14. Qa1 {[%clk 0:02:44.2]} 14... a5 {[%clk 0:02:47.4]} 15. Nf3 {[%clk
0:02:39.3]} 15... Ra7 {[%clk 0:02:39.5]} 16. Qa2 {[%clk 0:02:36.9]} 16... c5
{[%clk 0:02:31.4]} 17. Ra1 {[%clk 0:02:34.2]} 17... cxd4 {[%clk 0:02:27.6]} 18.
cxd4 {[%clk 0:02:35.1]} 18... Qc8 {[%clk 0:02:25.4]} 19. Bd3 {[%clk 0:02:31]}
19... Nb6 {[%clk 0:01:44.8]} 20. Rxa5 {[%clk 0:02:26.6]} 20... Rxa5 {[%clk
0:01:44.6]} 21. Qxa5 {[%clk 0:02:27.5]} 21... Nc4 {[%clk 0:01:45.5]} 22. Qa7
{[%clk 0:02:14]} 1/2-1/2